bitfinex-derivatives/quotes_BTCF0:USTF0_20230901
["timestamp","ask_amount","ask_price","bid_price","bid_amount"]
[1693529034808,0.47008907,26046.0,26045.0,0.41474893]
[1693529035114,0.4154,26046.0,26045.0,0.41858893]
[1693529036109,0.4154,26046.0,26045.0,0.41474893]
[1693529036309,0.4154,26046.0,26045.0,0.41858893]
[1693529036801,0.47008907,26046.0,26045.0,0.65863783]
[1693529037000,0.47008907,26046.0,26045.0,0.65479783]
[1693529037209,0.4154,26046.0,26045.0,0.41474893]
[1693529037406,0.47008907,26046.0,26045.0,0.41474893]
[1693529037605,0.4154,26046.0,26045.0,0.41474893]
[1693529037812,0.4154,26046.0,26045.0,0.61778458]
[1693529038109,0.4154,26046.0,26045.0,0.61394458]
[1693529038704,0.31880872,26046.0,26045.0,0.82364161]
[1693529039016,0.31880872,26046.0,26045.0,0.82748161]
[1693529039208,0.31880872,26046.0,26045.0,0.82364161]
[1693529041216,0.31880872,26046.0,26045.0,0.63778458]
[1693529041408,0.31880872,26046.0,26045.0,0.39389535]
[1693529041808,0.31880872,26046.0,26045.0,0.58359238]
[1693529043416,0.31880872,26046.0,26045.0,0.47235493]
[1693529043620,0.31880872,26046.0,26045.0,0.33734697]
[1693529043916,0.31880872,26046.0,26045.0,0.58359238]
[1693529045514,0.31880872,26046.0,26045.0,0.45235493]
[1693529045909,0.31880872,26046.0,26045.0,0.507044]
[1693529046319,0.31880872,26046.0,26045.0,0.45235493]
[1693529048008,0.37349779,26046.0,26045.0,0.45235493]
[1693529048212,0.31880872,26046.0,26045.0,0.45235493]
[1693529048710,0.37349779,26046.0,26045.0,0.2626579]
[1693529048913,0.37349779,26046.0,26045.0,0.45235493]
[1693529049311,0.37349779,26046.0,26045.0,0.50270928]
[1693529049515,0.31880872,26046.0,26045.0,0.50270928]
[1693529049726,0.31880872,26046.0,26045.0,0.26264755]
[1693529050020,0.31880872,26046.0,26045.0,0.50270019]
[1693529050322,0.37349779,26046.0,26045.0,0.50270019]
[1693529051022,0.31880872,26046.0,26045.0,0.50270019]
[1693529051422,0.37349779,26046.0,26045.0,0.50270019]
[1693529051921,0.31880872,26046.0,26045.0,0.50270019]
[1693529052322,0.37349779,26046.0,26045.0,0.50270019]
[1693529052524,0.31880872,26046.0,26045.0,0.50270019]
[1693529052725,0.31880872,26046.0,26045.0,0.55738926]
[1693529052914,0.31880872,26046.0,26045.0,0.50270019]
[1693529054030,0.31880872,26046.0,26045.0,0.74764036]
[1693529054327,0.31880872,26046.0,26045.0,0.80418874]
[1693529055726,0.31880872,26046.0,26045.0,0.74949967]
[1693529055927,0.31880872,26046.0,26045.0,0.69295129]
[1693529056225,0.44564119,26048.0,26045.0,0.69295129]
[1693529056421,0.53016149,26056.0,26047.0,0.56762152]
[1693529056422,0.4154,26050.0,26047.0,0.56762152]
[1693529056620,0.4154,26050.0,26049.0,0.56762152]
[1693529056922,0.4154,26050.0,26049.0,0.15222152]
[1693529057319,0.4154,26050.0,26049.0,0.26345897]
[1693529057520,0.4154,26050.0,26049.0,0.36527803]
[1693529057822,0.4154,26050.0,26049.0,0.25404058]
[1693529058015,0.4334,26050.0,26049.0,0.1521879]
[1693529058231,0.48808907,26050.0,26049.0,0.1521879]
[1693529058624,0.49308907,26050.0,26049.0,0.1551879]
[1693529058824,0.49308907,26050.0,26049.0,0.40922848]
[1693529059521,0.4554,26050.0,26049.0,0.41222848]
[1693529060825,0.4554,26050.0,26049.0,0.46691755]
[1693529061026,0.4554,26050.0,26049.0,0.37127803]
[1693529061726,0.4554,26050.0,26049.0,0.52343504]
[1693529061926,0.4554,26050.0,26049.0,0.52344036]
[1693529062127,0.4554,26050.0,26049.0,0.41220291]
[1693529063536,0.4554,26050.0,26049.0,0.31472965]
[1693529063731,0.4554,26050.0,26049.0,0.26004058]
[1693529064525,0.4554,26050.0,26049.0,0.31472965]
[1693529064721,0.4554,26050.0,26049.0,0.46686112]
[1693529064930,0.4554,26050.0,26049.0,0.31472965]
[1693529065126,0.4554,26050.0,26049.0,0.21281303]
[1693529065327,0.4554,26050.0,26049.0,0.26936141]
[1693529065627,0.4554,26050.0,26049.0,0.52340199]
[1693529067437,0.4554,26050.0,26049.0,0.46871292]
[1693529067637,0.4554,26050.0,26049.0,0.41216454]
[1693529068240,0.51008907,26050.0,26049.0,0.41216454]
[1693529068937,0.51008907,26050.0,26049.0,0.41217604]
[1693529069237,0.51008907,26050.0,26049.0,0.15812396]
[1693529070637,0.51008907,26050.0,26049.0,0.006]
[1693529071630,0.51008907,26050.0,26049.0,0.15812396]
[1693529071941,0.51008907,26050.0,26049.0,0.006]
[1693529073236,0.51008907,26050.0,26049.0,0.12008492]
[1693529078434,0.51008907,26050.0,26049.0,0.12009637]
[1693529079442,0.53008907,26050.0,26048.0,0.03017385]
[1693529079740,0.4154,26048.0,26045.0,0.15270436]
[1693529079941,0.4154,26046.0,26045.0,0.15270436]
[1693529080434,0.47008907,26046.0,26045.0,0.15270436]
[1693529080843,0.47008907,26046.0,26045.0,0.4067882]
[1693529081238,0.47008907,26046.0,26045.0,0.4127882]
[1693529085240,0.47608907,26046.0,26045.0,0.4067882]
[1693529085541,0.47608907,26046.0,26045.0,0.1527306]
[1693529085940,0.49608907,26046.0,26045.0,0.1527306]
[1693529086848,0.53958692,26046.0,26045.0,0.00057587]
[1693529088846,0.48489785,26046.0,26045.0,0.00057587]
[1693529089052,0.48489785,26046.0,26045.0,0.1527306]
[1693529089254,0.46489785,26046.0,26045.0,0.1727306]
[1693529089551,0.46489785,26046.0,26045.0,0.26396805]
[1693529089748,0.46489785,26046.0,26045.0,0.05712425]
[1693529090050,0.46489785,26046.0,26045.0,0.00057587]
[1693529090253,0.44689785,26046.0,26045.0,0.00057587]
[1693529090443,0.50158692,26046.0,26045.0,0.00657587]
[1693529091153,0.51358692,26046.0,26045.0,0.00657587]
[1693529091355,0.51958692,26046.0,26045.0,0.00057587]
[1693529093054,0.51958692,26046.0,26045.0,0.00441587]
[1693529093555,0.46489785,26046.0,26045.0,0.00441587]
[1693529094054,0.46489785,26046.0,26045.0,0.00057587]
[1693529094249,0.51958692,26046.0,26045.0,0.00057587]
[1693529096461,0.50758692,26046.0,26045.0,0.00057587]
[1693529097161,0.50158692,26046.0,26045.0,0.00657587]
[1693529097359,0.51358692,26046.0,26045.0,0.00657587]
[1693529097558,0.51958692,26046.0,26045.0,0.00057587]
[1693529102162,0.51958692,26046.0,26045.0,0.07663731]
[1693529104463,0.53958692,26046.0,26045.0,0.07663731]
[1693529106258,0.53958692,26046.0,26045.0,0.00057587]
[1693529106569,0.53958692,26046.0,26045.0,0.07659658]
[1693529107263,0.51958692,26046.0,26045.0,0.07659658]
[1693529107864,0.51958692,26046.0,26045.0,0.00057587]
[1693529117274,0.51958692,26046.0,26045.0,0.1527306]
[1693529117471,0.51958692,26046.0,26045.0,0.00057587]
[1693529118275,0.51958692,26046.0,26045.0,0.1527306]
[1693529119166,0.51958692,26046.0,26045.0,0.40682407]
[1693529122477,0.67578692,26046.0,26045.0,0.40682407]
[1693529124077,0.67578692,26046.0,26045.0,0.00057587]
[1693529125175,0.67578692,26046.0,26045.0,0.1527306]
[1693529127074,0.62109785,26046.0,26045.0,0.1527306]
[1693529127380,0.62109785,26046.0,26045.0,0.55180201]
[1693529127680,0.67578692,26046.0,26045.0,0.805895]
[1693529129274,0.62109785,26046.0,26045.0,0.86244338]
[1693529129480,0.62109785,26046.0,26045.0,1.29784338]
[1693529129481,0.04949785,26046.0,26045.0,1.29784338]
[1693529129782,0.46489785,26046.0,26045.0,0.82618211]
[1693529130079,0.62019785,26046.0,26045.0,0.15957587]
[1693529130282,0.67488692,26046.0,26045.0,0.15957587]
[1693529130776,0.67488692,26046.0,26045.0,0.00057587]
[1693529131081,0.05468907,26045.0,26042.0,0.15628184]
[1693529131380,0.4154,26043.0,26042.0,0.15244184]
[1693529131578,0.4154,26043.0,26042.0,0.39254122]
[1693529131773,0.4154,26043.0,26042.0,0.40656302]
[1693529132177,0.47008907,26043.0,26042.0,0.43640302]
[1693529132581,0.47008907,26043.0,26042.0,0.46940302]
[1693529132977,0.4174,26043.0,26042.0,0.5259514]
[1693529133378,0.4174,26043.0,26042.0,0.4999514]
[1693529133686,0.4184,26043.0,26042.0,0.5259514]
[1693529133982,0.47308907,26043.0,26042.0,0.5259514]
[1693529134173,0.4184,26043.0,26042.0,0.5259514]
[1693529134572,0.4224,26043.0,26042.0,0.4929514]
[1693529134982,0.4334,26043.0,26042.0,0.4669514]
[1693529135485,0.48808907,26043.0,26042.0,0.4669514]
[1693529135783,0.4334,26043.0,26042.0,0.41040302]
[1693529136175,0.59,26043.0,26042.0,0.4669514]
[1693529136878,0.64468907,26043.0,26042.0,0.41040302]
[1693529137277,0.64468907,26043.0,26042.0,0.40656302]
[1693529139184,0.64468907,26043.0,26041.0,0.30648184]
[1693529139381,0.47008907,26042.0,26041.0,0.15404]
[1693529140583,0.47008907,26042.0,26041.0,0.16004]
[1693529141889,0.48208907,26042.0,26041.0,0.16004]
[1693529142187,0.48808907,26042.0,26041.0,0.15404]
[1693529144188,0.48808907,26042.0,26041.0,0.26823956]
[1693529146091,0.4334,26042.0,26041.0,0.32478794]
[1693529146691,0.4334,26042.0,26041.0,0.26823956]
[1693529146989,0.48808907,26042.0,26041.0,0.26823956]
[1693529147186,0.4334,26042.0,26041.0,0.15404]
[1693529147793,0.4334,26042.0,26041.0,0.26822124]
[1693529147993,0.4334,26042.0,26041.0,0.15404]
[1693529148190,0.48808907,26042.0,26041.0,0.1502]
[1693529148390,0.48808907,26042.0,26041.0,0.07613361]
[1693529149394,0.48808907,26042.0,26040.0,0.07997361]
[1693529149583,0.47008907,26041.0,26040.0,0.07997361]
[1693529151987,0.47008907,26041.0,26040.0,0.08213361]
[1693529152196,0.49008907,26041.0,26040.0,0.08213361]
[1693529153196,0.50908907,26041.0,26040.0,0.07713361]
[1693529153797,0.48908907,26041.0,26040.0,0.07713361]
[1693529154097,0.50908907,26041.0,26040.0,0.07713361]
[1693529154495,0.52908907,26041.0,26040.0,0.08013361]
[1693529155000,0.51008907,26041.0,26040.0,0.07913361]
[1693529155195,0.53608907,26041.0,26040.0,0.07813361]
[1693529155496,0.51608907,26041.0,26040.0,0.08013361]
[1693529156090,0.50908907,26041.0,26040.0,0.07913361]
[1693529156688,0.51608907,26041.0,26040.0,0.08013361]
[1693529156891,0.51608907,26041.0,26040.0,0.08113361]
[1693529157598,0.51608907,26041.0,26040.0,0.08013361]
[1693529158292,0.50908907,26041.0,26040.0,0.08013361]
[1693529158691,0.50908907,26041.0,26040.0,0.08397361]
[1693529158894,0.51608907,26041.0,26040.0,0.08497361]
[1693529159296,0.49008907,26041.0,26040.0,0.08297361]
[1693529159595,0.50908907,26041.0,26040.0,0.08397361]
[1693529159791,0.50908907,26041.0,26040.0,0.08297361]
[1693529159990,0.56793165,26041.0,26040.0,0.08297361]
[1693529160493,0.54793165,26041.0,26040.0,0.08397361]
[1693529160698,0.56793165,26041.0,26040.0,0.08397361]
[1693529161287,0.56793165,26041.0,26040.0,0.08297361]
[1693529161492,0.57493165,26041.0,26040.0,0.08397361]
[1693529162598,0.57493165,26041.0,26040.0,0.00784]
[1693529162998,0.57493165,26041.0,26040.0,0.00884]
[1693529163602,0.52024258,26041.0,26040.0,0.00884]
[1693529163802,0.57493165,26041.0,26040.0,0.17464]
[1693529164104,0.52024258,26041.0,26040.0,0.17464]
[1693529164304,0.52024258,26041.0,26040.0,0.25077361]
[1693529164508,0.57493165,26041.0,26040.0,0.25077361]
[1693529165806,0.4614,26041.0,26040.0,0.30732199]
[1693529166594,0.4614,26041.0,26040.0,0.36201106]
[1693529166999,0.4614,26041.0,26040.0,0.30732199]
[1693529168900,0.4534,26041.0,26040.0,0.30432199]
[1693529169206,0.4334,26041.0,26040.0,0.30232199]
[1693529170910,0.48808907,26041.0,26040.0,0.30232199]
[1693529171209,0.4334,26041.0,26040.0,0.30232199]
[1693529171809,0.48808907,26041.0,26040.0,0.30232199]
[1693529172109,0.4334,26041.0,26040.0,0.30232199]
[1693529172310,0.48808907,26041.0,26040.0,0.24577361]
[1693529173209,0.48808907,26041.0,26040.0,0.16964]
[1693529173410,0.4334,26041.0,26040.0,0.16964]
[1693529174201,0.4334,26041.0,26040.0,0.28383313]
[1693529175407,0.4334,26041.0,26040.0,0.34038151]
[1693529176007,0.4404,26041.0,26040.0,0.34238151]
[1693529176310,0.4534,26041.0,26040.0,0.34338151]
[1693529176510,0.4534,26041.0,26040.0,0.39807058]
[1693529177617,0.4534,26041.0,26040.0,0.63818064]
[1693529177998,0.4534,26041.0,26040.0,0.69642935]
[1693529178309,0.4344,26041.0,26040.0,0.94854299]
[1693529178501,0.4534,26041.0,26040.0,0.79810115]
[1693529178812,0.038,26041.0,26040.0,1.21350115]
[1693529179012,0.038,26041.0,26040.0,1.40369456]
[1693529179413,0.44669006,26043.0,26041.0,0.00384]
[1693529179614,0.44669006,26043.0,26042.0,0.76674751]
[1693529179912,0.44669006,26043.0,26042.0,0.78674751]
[1693529180409,0.44669006,26043.0,26042.0,0.90087768]
[1693529181620,0.46469006,26043.0,26042.0,0.90087768]
[1693529181911,0.47769006,26043.0,26042.0,0.90187768]
[1693529182217,0.48469006,26043.0,26042.0,0.90387768]
[1693529183314,0.48469006,26043.0,26042.0,0.88387768]
[1693529183618,0.48469006,26043.0,26042.0,0.90387768]
[1693529184218,0.48469006,26043.0,26042.0,0.88387768]
[1693529184517,0.48469006,26043.0,26042.0,0.76974751]
[1693529184819,0.48469006,26043.0,26042.0,0.52963745]
[1693529191726,0.48469006,26043.0,26042.0,0.64371725]
[1693529199848,0.48469006,26043.0,26042.0,0.52963745]
[1693529203148,0.48469006,26043.0,26042.0,0.68180873]
[1693529203545,0.48469006,26043.0,26042.0,0.52963745]
[1693529204240,0.48469006,26043.0,26042.0,0.68180873]
[1693529204440,0.48469006,26043.0,26042.0,0.52963745]
[1693529204849,0.48469006,26043.0,26042.0,0.68180873]
[1693529206749,0.48469006,26043.0,26042.0,0.52963745]
[1693529206947,0.06929006,26043.0,26042.0,0.52963745]
[1693529210756,0.06929006,26043.0,26042.0,0.68180873]
[1693529212957,0.06929006,26043.0,26042.0,1.1759779]
[1693529214955,0.06929006,26043.0,26042.0,0.76971186]
[1693529215960,0.06929006,26043.0,26042.0,0.92188314]
[1693529216462,0.06929006,26043.0,26042.0,1.17597742]
[1693529217963,0.06929006,26043.0,26042.0,1.02380614]
[1693529219856,0.03857603,26043.0,26042.0,1.02380614]
[1693529220055,0.03857603,26043.0,26042.0,1.21399955]
[1693529221066,0.4154,26044.0,26043.0,0.03282853]
[1693529221267,0.4154,26044.0,26043.0,0.82856145]
[1693529221567,0.4154,26044.0,26043.0,0.99116145]
[1693529222064,0.4154,26044.0,26043.0,1.02816145]
[1693529222564,0.4154,26044.0,26043.0,0.99116145]
[1693529222763,0.4154,26044.0,26043.0,1.02816145]
[1693529223663,0.4154,26044.0,26043.0,1.06616145]
[1693529225471,0.4154,26044.0,26043.0,0.82608704]
[1693529225664,0.4154,26044.0,26043.0,1.0662314]
[1693529227062,0.4154,26045.0,26043.0,1.4816314]
[1693529227362,0.4154,26045.0,26044.0,0.2540889]
[1693529227563,0.4354,26045.0,26044.0,0.36532635]
[1693529227873,0.4154,26045.0,26044.0,0.36532635]
[1693529228972,0.4154,26045.0,26044.0,0.38832635]
[1693529229476,0.4154,26045.0,26044.0,0.62838935]
[1693529229674,0.4154,26045.0,26044.0,0.64438935]
[1693529229873,0.4154,26045.0,26044.0,0.79677233]
[1693529236877,0.4154,26045.0,26044.0,0.64438935]
[1693529237079,0.4154,26045.0,26044.0,1.05978935]
[1693529237584,0.4154,26045.0,26044.0,0.81972635]
[1693529243474,0.33879785,26046.0,26044.0,0.81972635]
[1693529243680,1.2128,26050.0,26045.0,1.0207648]
[1693529243884,0.1536,26049.0,26048.0,0.15235487]
[1693529244082,0.03032197,26050.0,26048.0,0.67899232]
[1693529244284,0.18392197,26050.0,26049.0,0.4154]
[1693529244581,0.1536,26050.0,26049.0,0.52663745]
[1693529244883,0.1536,26050.0,26049.0,0.69113745]
[1693529245284,0.1536,26050.0,26049.0,0.80532101]
[1693529245685,0.1536,26050.0,26049.0,0.69113745]
[1693529245982,0.1536,26050.0,26049.0,0.80535704]
[1693529246178,0.1536,26050.0,26049.0,0.80833281]
[1693529247084,0.1586,26050.0,26049.0,0.81133281]
[1693529247682,0.002,26050.0,26049.0,1.38798123]
[1693529247884,0.002,26050.0,26049.0,1.69714968]
[1693529248182,0.002,26050.0,26049.0,1.9371561]
[1693529248386,0.002,26050.0,26049.0,1.69701613]
[1693529248586,0.002,26050.0,26049.0,1.97506116]
[1693529248883,0.002,26050.0,26049.0,1.97890116]
[1693529249082,0.002,26050.0,26049.0,1.97906116]
[1693529249786,0.002,26050.0,26049.0,2.01306116]
[1693529250488,0.002,26050.0,26049.0,2.01690116]
[1693529250682,0.47382017,26059.0,26056.0,0.00384]
[1693529250879,0.1664,26058.0,26057.0,0.52663745]
[1693529251176,0.4154,26059.0,26057.0,0.5767]
[1693529251373,0.1664,26058.0,26057.0,0.5767]
[1693529251979,0.1724,26058.0,26057.0,0.68793745]
[1693529252380,0.1724,26058.0,26057.0,0.68893745]
[1693529252583,0.1684,26058.0,26057.0,0.68893745]
[1693529253681,0.1684,26058.0,26057.0,0.69277745]
[1693529254086,0.1664,26058.0,26057.0,0.69277745]
[1693529254288,0.1684,26058.0,26057.0,0.69277745]
[1693529254591,0.1684,26058.0,26057.0,0.69177745]
[1693529254785,0.1664,26058.0,26057.0,0.72777745]
[1693529255492,0.1664,26058.0,26057.0,0.75677745]
[1693529258286,0.1664,26058.0,26057.0,1.33144013]
[1693529259890,0.44585687,26060.0,26057.0,1.33144013]
[1693529259891,0.44585687,26060.0,26059.0,0.00384]
[1693529260095,0.44585687,26060.0,26059.0,0.53047745]
[1693529260297,0.03045687,26060.0,26059.0,0.53047745]
[1693529260490,0.4154,26062.0,26059.0,0.53047745]
[1693529260796,0.4354,26062.0,26061.0,0.4154]
[1693529261599,0.4354,26062.0,26061.0,0.52663745]
[1693529262595,0.4414,26062.0,26061.0,0.54263745]
[1693529263191,0.4354,26062.0,26061.0,0.54263745]
[1693529263397,0.4354,26062.0,26061.0,0.57863745]
[1693529263900,0.4354,26062.0,26061.0,0.56263745]
[1693529264098,0.4354,26062.0,26061.0,0.59163745]
[1693529264695,0.4354,26062.0,26061.0,0.57863745]
[1693529264999,0.46630333,26062.0,26061.0,0.57963745]
[1693529265497,0.46630333,26062.0,26061.0,0.56563745]
[1693529267090,0.46630333,26062.0,26061.0,0.15023745]
[1693529268504,0.05090333,26062.0,26061.0,0.56563745]
[1693529270207,0.05090333,26062.0,26061.0,0.51094838]
[1693529272008,0.05090333,26062.0,26061.0,0.56563745]
[1693529272210,0.02,26062.0,26061.0,0.51094838]
[1693529272596,0.02,26062.0,26061.0,0.56563745]
[1693529272801,0.02,26062.0,26061.0,0.51094838]
[1693529274310,0.59965553,26063.0,26061.0,0.56563745]
[1693529274511,0.6743446,26063.0,26062.0,0.4154]
[1693529274713,0.61965553,26063.0,26062.0,0.4154]
[1693529275013,0.6743446,26063.0,26062.0,0.4154]
[1693529275909,0.61965553,26063.0,26062.0,0.4154]
[1693529276109,0.61965553,26063.0,26062.0,0.48194838]
[1693529276916,0.20425553,26063.0,26062.0,0.48594838]
[1693529277116,0.20425553,26063.0,26062.0,0.54063745]
[1693529277818,0.20425553,26063.0,26062.0,0.48594838]
[1693529278013,0.20425553,26063.0,26062.0,0.47594838]
[1693529278209,0.20425553,26063.0,26062.0,0.48594838]
[1693529278616,0.20625553,26063.0,26062.0,0.47594838]
[1693529279318,0.20625553,26063.0,26062.0,0.53063745]
[1693529279516,0.20625553,26063.0,26062.0,0.47594838]
[1693529279718,0.20625553,26063.0,26062.0,0.47194838]
[1693529280205,0.20625553,26063.0,26062.0,0.4154]
[1693529280412,0.18625553,26063.0,26062.0,0.4154]
[1693529280719,0.20625553,26063.0,26062.0,0.4154]
[1693529280919,0.18625553,26063.0,26062.0,0.4154]
[1693529282412,0.2409446,26063.0,26062.0,0.4154]
[1693529282819,0.18625553,26063.0,26062.0,0.4154]
[1693529284312,1.03705553,26063.0,26057.0,0.07986361]
[1693529284513,0.4154,26058.0,26057.0,0.49526361]
[1693529284713,0.4154,26058.0,26057.0,0.73524008]
[1693529284913,0.47008907,26058.0,26057.0,0.73524008]
[1693529285515,0.47008907,26058.0,26057.0,0.73140008]
[1693529285715,0.47008907,26058.0,26057.0,0.76840008]
[1693529286021,0.47008907,26058.0,26057.0,0.72937647]
[1693529286218,0.47008907,26058.0,26057.0,0.80540008]
[1693529286614,0.47008907,26058.0,26057.0,0.72937647]
[1693529287018,0.47008907,26058.0,26057.0,0.31397647]
[1693529287422,0.47008907,26058.0,26057.0,0.29297647]
[1693529287821,0.47008907,26058.0,26057.0,0.25597647]
[1693529288023,0.47008907,26058.0,26057.0,0.29197647]
[1693529288322,0.47008907,26058.0,26057.0,0.36800008]
[1693529288520,0.47008907,26058.0,26057.0,0.35500008]
[1693529288924,0.47008907,26058.0,26057.0,0.11502361]
[1693529289925,0.47008907,26058.0,26057.0,0.14103541]
[1693529291218,0.47208907,26058.0,26057.0,0.11803541]
[1693529291722,0.47008907,26058.0,26057.0,0.11803541]
[1693529291923,0.47608907,26058.0,26057.0,0.11803541]
[1693529292424,0.47608907,26058.0,26057.0,0.11403541]
[1693529293124,0.47608907,26058.0,26057.0,0.11503541]
[1693529295323,0.49608907,26058.0,26057.0,0.08503541]
[1693529296129,0.47608907,26058.0,26057.0,0.001]
[1693529296424,0.4414,26058.0,26057.0,0.05713847]
[1693529296924,0.49608907,26058.0,26057.0,0.05713847]
[1693529297225,0.52710168,26058.0,26057.0,0.05713847]
[1693529299424,0.50710168,26058.0,26057.0,0.05713847]
[1693529299726,0.52710168,26058.0,26057.0,0.05713847]
[1693529299926,0.58472041,26058.0,26057.0,0.05713847]
[1693529300426,0.58472041,26058.0,26055.0,0.00441565]
[1693529300628,0.4154,26056.0,26055.0,0.00441565]
[1693529300825,0.47008907,26056.0,26055.0,0.00441565]
[1693529301027,0.4154,26056.0,26055.0,0.00441565]
[1693529301823,0.47008907,26056.0,26055.0,0.00741565]
[1693529302019,0.47008907,26056.0,26055.0,0.01741565]
[1693529303631,0.47208907,26056.0,26055.0,0.00741565]
[1693529304325,0.47208907,26056.0,26055.0,0.00441565]
[1693529304526,0.47308907,26056.0,26055.0,0.00441565]
[1693529304927,0.47308907,26056.0,26055.0,0.00057565]
[1693529311521,0.47308907,26056.0,26055.0,0.00441565]
[1693529312527,0.53037166,26056.0,26055.0,0.00441565]
[1693529312727,0.53037166,26056.0,26055.0,0.00057565]
[1693529314136,0.53037166,26056.0,26055.0,0.00441565]
[1693529315029,0.53037166,26056.0,26055.0,0.00057565]
[1693529317440,0.53037166,26056.0,26055.0,0.00441565]
[1693529318834,0.53037166,26056.0,26055.0,0.00057565]
[1693529320229,0.53037166,26056.0,26055.0,0.00441565]
[1693529320441,0.53037166,26056.0,26055.0,0.00057565]
[1693529324341,0.4154,26055.0,26053.0,0.1608]
[1693529324649,0.4154,26054.0,26053.0,0.1608]
[1693529324845,0.4154,26054.0,26049.0,0.15204722]
[1693529325048,0.4154,26050.0,26049.0,0.17204722]
[1693529325239,0.47008907,26050.0,26049.0,0.17204722]
[1693529325434,0.47008907,26050.0,26048.0,0.31264722]
[1693529325739,0.4154,26049.0,26048.0,0.33264722]
[1693529325941,0.47008907,26049.0,26048.0,0.1806]
[1693529326138,0.47008907,26049.0,26048.0,0.1606]
[1693529326341,0.47008907,26049.0,26048.0,0.1806]
[1693529326940,0.47008907,26049.0,26048.0,0.2176]
[1693529327144,0.47008907,26049.0,26048.0,0.62370158]
[1693529327347,0.47008907,26049.0,26048.0,0.40664722]
[1693529327541,0.47008907,26049.0,26048.0,0.39264722]
[1693529327739,0.47008907,26049.0,26048.0,0.64670292]
[1693529327948,0.47008907,26049.0,26048.0,0.60970292]
[1693529328140,0.47008907,26049.0,26048.0,0.62570292]
[1693529328340,0.47008907,26049.0,26048.0,0.60570292]
[1693529331150,0.47008907,26049.0,26048.0,0.44510292]
[1693529331443,0.49008907,26049.0,26048.0,0.039]
[1693529335950,0.47008907,26049.0,26048.0,0.039]
[1693529336151,0.49008907,26049.0,26048.0,0.039]
[1693529337049,0.47008907,26049.0,26048.0,0.039]
[1693529337356,0.49008907,26049.0,26048.0,0.039]
[1693529337945,0.47008907,26049.0,26048.0,0.039]
[1693529338748,0.49008907,26049.0,26048.0,0.039]
[1693529339654,0.5208473,26049.0,26048.0,0.039]
[1693529340353,0.5008473,26049.0,26048.0,0.039]
[1693529340556,0.5208473,26049.0,26048.0,0.039]
[1693529343151,0.57778721,26049.0,26048.0,0.039]
[1693529344354,0.55778721,26049.0,26048.0,0.039]
[1693529344553,0.57778721,26049.0,26048.0,0.039]
[1693529345555,0.55778721,26049.0,26048.0,0.039]
[1693529346763,0.57778721,26049.0,26048.0,0.039]
[1693529347651,0.57778721,26049.0,26045.0,0.3234]
[1693529347852,0.4154,26046.0,26043.0,0.15204722]
[1693529348058,0.4154,26044.0,26043.0,0.33544722]
[1693529348257,0.37405588,26044.0,26043.0,0.58954913]
[1693529348864,0.37405588,26044.0,26043.0,0.33554114]
[1693529349066,0.37405588,26044.0,26043.0,0.1634]
[1693529349564,0.37705588,26044.0,26043.0,0.2004]
[1693529349956,0.37805588,26044.0,26043.0,0.2374]
[1693529350657,0.37505588,26044.0,26043.0,0.1774]
[1693529350851,0.37505588,26044.0,26043.0,0.1904]
[1693529351563,0.37505588,26044.0,26043.0,0.19566367]
[1693529352263,0.37505588,26044.0,26043.0,0.16866367]
[1693529352264,0.38105588,26044.0,26043.0,0.16866367]
[1693529353166,0.39305588,26044.0,26043.0,0.16866367]
[1693529353767,0.29870652,26044.0,26043.0,0.16866367]
[1693529353967,0.26163302,26044.0,26043.0,0.16866367]
[1693529354761,0.26163302,26044.0,26043.0,0.00526367]
[1693529354962,0.28163302,26044.0,26043.0,0.00526367]
[1693529356170,0.26163302,26044.0,26043.0,0.00526367]
[1693529358071,0.26163302,26044.0,26043.0,0.24535566]
[1693529360064,0.29168453,26044.0,26043.0,0.00526367]
[1693529360567,0.29168453,26044.0,26043.0,0.24535505]
[1693529361270,0.34806608,26044.0,26043.0,0.24535505]
[1693529365172,0.34806608,26044.0,26043.0,0.35941349]
[1693529365876,0.34806608,26044.0,26043.0,0.11932211]
[1693529366270,0.34806608,26044.0,26043.0,0.35941085]
[1693529367178,0.34806608,26044.0,26043.0,0.24535241]
[1693529369380,0.34806608,26044.0,26043.0,0.39743033]
[1693529370079,0.34806608,26044.0,26043.0,0.65154023]
[1693529372282,0.34806608,26044.0,26043.0,0.24535241]
[1693529373286,0.34806608,26044.0,26043.0,0.40749241]
[1693529380191,0.34806608,26044.0,26043.0,0.40749624]
[1693529380392,0.34806608,26044.0,26043.0,0.81368808]
[1693529380889,0.29337701,26044.0,26043.0,0.87023518]
[1693529381285,0.29337701,26044.0,26043.0,0.92492425]
[1693529382286,0.28637701,26044.0,26043.0,0.92492425]
[1693529382486,0.28637701,26044.0,26043.0,0.92992425]
[1693529383293,0.27437701,26044.0,26043.0,0.92992425]
[1693529384293,0.27437701,26044.0,26043.0,0.87523518]
[1693529384698,0.28637701,26044.0,26043.0,0.87523518]
[1693529384991,0.28637701,26044.0,26043.0,0.92992425]
[1693529385893,0.29337701,26044.0,26043.0,0.92492425]
[1693529389395,0.30637701,26044.0,26043.0,0.92592425]
[1693529390093,0.30637701,26044.0,26043.0,0.92692425]
[1693529390094,0.29737701,26044.0,26043.0,0.92692425]
[1693529390691,0.31037701,26044.0,26043.0,0.92792425]
[1693529392201,0.31037701,26044.0,26043.0,0.77584633]
[1693529392694,0.25399546,26044.0,26043.0,0.77200633]
[1693529392900,0.25399546,26044.0,26043.0,0.77584633]
[1693529393097,0.25399546,26044.0,26043.0,0.79584633]
[1693529395303,0.25399546,26044.0,26043.0,0.98660819]
[1693529395499,0.25399546,26044.0,26043.0,0.98276819]
[1693529395894,0.25399546,26044.0,26043.0,0.96276819]
[1693529396092,0.25399546,26044.0,26043.0,0.98276819]
[1693529402510,0.15797212,26044.0,26043.0,0.79200633]
[1693529403404,0.15797212,26044.0,26043.0,0.79584633]
[1693529403810,0.15797212,26044.0,26043.0,0.98264433]
[1693529405414,0.15797212,26044.0,26043.0,0.96264433]
[1693529405606,0.15797212,26044.0,26043.0,0.72255176]
[1693529407916,0.15797212,26044.0,26043.0,0.66786269]
[1693529409818,0.21266119,26044.0,26043.0,0.66786269]
[1693529410213,0.15797212,26044.0,26043.0,0.71729799]
[1693529410519,0.15797212,26044.0,26043.0,0.86981493]
[1693529411619,0.32437212,26044.0,26043.0,0.86981493]
[1693529414222,0.32437212,26044.0,26043.0,0.81326655]
[1693529414712,0.32437212,26044.0,26043.0,0.40663697]
[1693529415124,0.32437212,26044.0,26043.0,0.55915391]
[1693529415819,0.37906119,26044.0,26043.0,0.55915391]
[1693529416120,0.32437212,26044.0,26043.0,0.55915391]
[1693529416518,0.37906119,26044.0,26043.0,0.40663697]
[1693529416823,0.37906119,26044.0,26043.0,0.28098287]
[1693529417416,0.37906119,26044.0,26043.0,0.16656367]